bitfinex/quotes_ETHUSD_20240926
["timestamp","ask_amount","ask_price","bid_price","bid_amount"]
[1727313151853,4.55552033,2579.7,2579.6,0.05936958]
[1727313152023,0.0394168,2579.7,2579.2,4.65765]
[1727313152223,0.0394168,2579.7,2579.6,0.05936958]
[1727313152485,0.0394168,2579.7,2579.2,5.811069]
[1727313152618,0.0394168,2579.7,2579.6,0.05936958]
[1727313152939,0.0394168,2579.7,2579.2,5.811069]
[1727313153131,0.0394168,2579.7,2579.6,0.05936958]
[1727313153335,0.0394168,2579.7,2579.3,0.8811069]
[1727313153541,3.9158268,2579.7,2579.6,0.05936958]
[1727313153765,3.87666,2579.6,2579.1,3.0]
[1727313153972,3.9158268,2579.7,2579.1,3.0]
[1727313154628,0.0394168,2579.7,2579.3,3.87698]
[1727313154831,0.0394168,2579.7,2579.3,4.952383]
[1727313155229,0.0394168,2579.7,2579.3,5.02991039]
[1727313155460,0.0394168,2579.7,2579.3,1.15293039]
[1727313155773,0.0394168,2579.7,2579.5,0.8025]
[1727313156069,0.0394168,2579.7,2579.6,3.87657]
[1727313156531,0.0394168,2579.7,2579.6,3.9540811]
[1727313157196,0.0394168,2579.7,2579.6,7.5040811]
[1727313157933,0.0394168,2579.7,2579.6,6.87657]
[1727313158175,0.0394168,2579.7,2579.6,4.155578]
[1727313158382,0.0394168,2579.7,2579.6,3.0]
[1727313158671,0.0394168,2579.7,2579.5,4.6791]
[1727313158879,0.0394168,2579.7,2579.6,6.87657]
[1727313159844,3.87598,2580.0,2579.6,0.0565087]
[1727313160171,3.87612,2579.9,2579.6,0.0565087]
[1727313160374,3.87627,2579.8,2579.6,0.0565087]
[1727313160534,3.87641,2579.7,2579.6,0.0565087]
[1727313160734,3.87627,2579.8,2579.3,6.87692]
[1727313160967,3.87627,2579.8,2579.3,8.033154]
[1727313161174,3.87627,2579.8,2579.4,0.05668076]
[1727313161580,7.75263,2579.8,2579.4,0.05668076]
[1727313161804,3.87627,2579.8,2579.4,0.05668076]
[1727313161972,7.75263,2579.8,2579.4,0.05668076]
[1727313162172,3.87627,2579.8,2579.2,4.68542]
[1727313162399,3.87627,2579.8,2579.2,9.331032]
[1727313162606,3.87627,2579.8,2579.3,0.0568624]
[1727313163098,3.87627,2579.8,2579.2,3.0]
[1727313163099,8.39276353,2579.6,2579.2,3.0]
[1727313163276,8.39276353,2579.6,2579.4,0.0568624]
[1727313163477,8.39276353,2579.6,2579.1,3.0]
[1727313163698,8.39276353,2579.6,2579.5,0.0568624]
[1727313163996,3.87672,2579.5,2579.0,3.87743]
[1727313164199,8.44008813,2579.6,2579.0,3.87743]
[1727313164404,8.44008813,2579.6,2579.0,7.75481]
[1727313164571,8.44008813,2579.6,2579.1,3.87728]
[1727313166779,4.56342813,2579.6,2579.2,3.87713]
[1727313166982,0.0473246,2579.6,2579.3,4.62974]
[1727313167299,0.0473246,2579.6,2579.4,3.8768]
[1727313168094,0.0473246,2579.6,2579.5,3.87672]
[1727313168683,0.0473246,2579.6,2579.5,3.95424473]
[1727313169000,0.0473246,2579.6,2579.5,4.8126342]
[1727313171104,0.0473246,2579.6,2579.5,4.73510947]
[1727313171717,0.0473246,2579.6,2579.3,6.87697]
[1727313171923,0.0473246,2579.6,2579.3,3.0]
[1727313172415,0.0473246,2579.6,2579.3,6.87701]
[1727313172619,0.0473246,2579.6,2579.5,3.87672]
[1727313173417,0.0473246,2579.6,2579.5,3.95423717]
[1727313173622,0.0473246,2579.6,2579.5,5.11417589]
[1727313173979,0.0473246,2579.6,2579.5,5.03665872]
[1727313174493,0.0473246,2579.6,2579.5,5.11417592]
[1727313175023,0.0473246,2579.6,2579.5,5.17106701]
[1727313175320,0.0473246,2579.6,2579.5,9.53206701]
[1727313175515,0.0473246,2579.6,2579.5,9.45454981]
[1727313177507,0.0473246,2579.6,2579.5,8.90454981]
[1727313178100,0.0473246,2579.6,2579.5,29.13454981]
[1727313178826,0.0395267,2580.0,2579.9,3.87611]
[1727313178998,0.0395267,2580.0,2579.9,7.77421021]
[1727313179195,0.0395267,2580.0,2579.9,7.8304703]
[1727313179397,0.0395267,2580.0,2579.9,7.75297009]
[1727313181266,0.0395267,2580.0,2579.9,27.98297009]
[1727313181520,0.0395267,2580.0,2579.9,37.98228867]
[1727313181925,0.0395267,2580.8,2580.7,8.18081]
[1727313182595,0.0395267,2580.8,2580.7,8.23707009]
[1727313185526,0.0395267,2581.6,2581.0,3.87441]
[1727313185687,0.0395267,2581.6,2580.8,3.0]
[1727313185688,0.0395267,2581.6,2581.4,3.87386]
[1727313186085,0.0395267,2581.6,2581.1,0.784]
[1727313186086,0.0395267,2581.6,2581.5,0.05626009]
[1727313186293,0.0395267,2581.6,2581.2,3.87402]
[1727313186489,3.7026759,2581.6,2581.2,3.87402]
[1727313186721,3.7026759,2581.6,2581.2,8.822943]
[1727313187148,3.6631492,2581.6,2581.2,8.822943]
[1727313187423,3.6723665,2581.6,2581.2,4.948863]
[1727313187632,3.6723665,2581.6,2581.3,3.87401]
[1727313187790,3.6723665,2581.6,2581.3,0.8822873]
[1727313188215,3.6723665,2581.6,2581.2,3.87402]
[1727313188990,3.6723665,2581.6,2581.1,0.07746993]
[1727313188991,3.6631492,2581.4,2581.1,3.0]
[1727313189186,0.0092173,2581.4,2581.2,3.87403]
[1727313189398,0.0092173,2581.4,2581.2,4.26918042]
[1727313190029,0.0092173,2581.4,2581.3,0.05503723]
[1727313190733,0.0092173,2581.4,2581.2,4.26918042]
[1727313190892,0.0092173,2581.4,2581.3,0.05348936]
[1727313191087,0.0092173,2581.4,2581.2,8.2207204]
[1727313191417,0.0092173,2581.4,2581.3,0.05179603]
[1727313191820,3.87425,2581.2,2580.8,0.82370701]
[1727313192002,3.6631492,2580.9,2580.7,3.87489]
[1727313192329,3.6631492,2580.9,2580.7,4.649873]
[1727313192529,3.6631492,2580.9,2580.7,0.774983]
[1727313192690,3.6631492,2580.9,2580.4,3.87528]
[1727313193218,3.6631492,2580.9,2580.5,3.87513]
[1727313193530,3.6631492,2580.9,2580.4,3.87528]
[1727313193690,3.6631492,2580.7,2580.2,3.87558]
[1727313193893,3.6631492,2580.7,2580.3,4.263068]
[1727313194241,0.8159,2580.9,2580.5,3.87509]
[1727313194242,4.4790492,2580.9,2580.5,3.87509]
[1727313194890,0.8159,2580.9,2580.5,3.87509]
[1727313195090,0.8159,2580.9,2580.6,0.46500091]
[1727313195313,0.8159,2580.9,2580.7,3.87491]
[1727313196023,0.8159,2580.9,2580.6,0.46499855]
[1727313196193,4.4790492,2580.9,2580.6,0.387509]
[1727313196389,4.4790492,2580.9,2580.5,3.87509]
[1727313196616,4.4790492,2580.9,2580.3,4.262938]
[1727313196617,3.6631492,2580.7,2580.3,4.262938]
[1727313196932,3.6631492,2580.7,2580.1,6.87577]
[1727313196933,0.7806,2580.4,2580.1,6.87577]
[1727313197092,0.7806,2580.4,2579.8,3.87626]
[1727313197093,3.6631492,2580.2,2579.8,3.87626]
[1727313197291,3.6631492,2580.2,2579.8,3.87625]
[1727313197603,3.6631492,2580.2,2579.9,0.85165]
[1727313197808,4.4437492,2580.4,2579.9,0.85165]
[1727313198118,4.4437492,2580.4,2580.0,3.87593]
[1727313198327,3.6631492,2580.6,2580.3,3.87549]
[1727313198556,0.7677,2580.7,2580.5,3.87519]
[1727313198757,0.7677,2580.7,2580.4,3.87525]
[1727313198962,0.7677,2580.7,2580.4,3.95274553]
[1727313199259,3.6631492,2580.6,2580.2,3.87557]
[1727313199563,3.6631492,2580.6,2580.3,4.263057]
[1727313200219,3.6631492,2580.6,2580.3,0.387557]
[1727313200421,3.6631492,2580.6,2579.8,3.87626]
[1727313200422,7.5385992,2580.4,2579.8,3.87626]
[1727313200662,3.6631492,2580.0,2579.9,3.87611]
[1727313200840,3.6631492,2580.2,2579.9,3.87611]
[1727313201054,0.8104,2580.3,2580.1,3.87569]
[1727313201248,0.8104,2580.3,2580.2,0.07750535]
[1727313201430,0.8104,2580.3,2580.0,4.651117]
[1727313201934,0.8104,2580.3,2580.1,3.87577]
[1727313202130,0.8104,2580.3,2580.1,0.86043936]
[1727313202345,0.8104,2580.3,2580.0,3.87587]
[1727313202972,0.8104,2580.3,2580.0,7.75175]
[1727313203270,0.8104,2580.3,2580.1,3.87579]
[1727313203423,0.8104,2580.3,2580.0,3.87587]
[1727313203825,3.6631492,2580.2,2579.8,3.87623]
[1727313204020,3.6631492,2580.2,2579.8,4.951504]
[1727313204470,0.7798,2580.1,2579.8,3.87623]
[1727313204794,3.6631492,2580.0,2579.6,3.87645]
[1727313204930,3.6631492,2580.0,2579.9,0.05176978]
[1727313205126,3.6631492,2580.0,2579.6,3.87645]
[1727313205425,3.6631492,2579.7,2579.3,3.8769]
[1727313206083,3.6631492,2579.7,2579.0,0.8037]
[1727313206385,3.6631492,2579.9,2579.4,3.87686]
[1727313206558,3.6631492,2579.9,2579.3,3.87692]
[1727313207284,3.6631492,2579.7,2579.3,3.87692]
[1727313208092,3.6631492,2579.7,2579.3,7.75382]
[1727313208255,0.8264,2579.8,2579.4,3.87679]
[1727313210345,0.8264,2579.8,2579.5,4.652069]
[1727313210574,0.8079,2580.1,2579.6,3.87648]
[1727313210843,4.4710492,2580.1,2579.5,3.8767]
[1727313211049,8.3468692,2580.1,2579.6,0.38767]
[1727313211994,7.5393692,2579.9,2579.3,3.87697]
[1727313212760,3.6631492,2579.9,2579.3,3.87692]
[1727313212984,3.6631492,2579.9,2579.3,3.95444546]
[1727313213188,7.5392792,2579.9,2579.3,3.87689]
[1727313213388,3.6631492,2579.7,2579.2,3.0]
[1727313213559,3.6631492,2579.7,2579.2,6.8771]
[1727313213763,3.6631492,2579.7,2579.3,3.877]
[1727313214901,3.6631492,2579.5,2579.1,3.87723]
[1727313215395,0.7559,2579.4,2579.1,4.952711]
[1727313215965,0.7559,2579.4,2579.2,3.87713]
[1727313216265,0.7559,2579.4,2579.1,4.952681]
[1727313217261,7.5403492,2579.2,2578.6,23.55803]
[1727313217464,7.5403492,2579.2,2578.5,3.8782]
[1727313217465,3.6631492,2578.8,2578.5,3.8782]
[1727313217663,3.6631492,2578.8,2578.5,8.607916]
[1727313217915,0.8162,2578.9,2578.5,3.87812]
[1727313218390,0.8162,2578.9,2578.5,7.75624]
[1727313218589,4.4777492,2579.2,2578.7,3.87791]
[1727313218908,7.5410192,2578.8,2578.2,0.0412924]
[1727313219207,3.6631492,2578.4,2578.2,0.0412924]
[1727313219587,0.8283,2578.3,2578.2,0.0412924]
[1727313219989,0.8283,2578.3,2578.2,0.09498364]
[1727313220307,4.4914492,2578.6,2578.2,0.09498364]
[1727313220514,4.4914492,2578.6,2578.2,0.50011101]
[1727313220679,8.3695192,2578.6,2578.2,0.50011101]
[1727313221014,4.4914492,2578.6,2578.2,0.50011101]
[1727313221490,4.4914492,2578.6,2578.2,0.09498364]
[1727313221677,0.8283,2578.6,2578.2,0.09498364]
[1727313221881,4.66149,2578.9,2578.4,3.87828]
[1727313222094,3.87792,2578.7,2578.2,4.81439117]
[1727313222295,3.87792,2578.7,2578.5,0.05548963]
[1727313222498,3.6631492,2578.6,2578.2,4.47893905]
[1727313222804,3.6631492,2578.6,2578.3,0.44789391]
[1727313223007,3.6631492,2578.6,2578.3,3.87851]
[1727313223170,3.6631492,2578.4,2578.2,0.0412924]
[1727313223523,3.87852,2578.3,2578.2,0.0412924]
[1727313223716,4.64992,2578.3,2578.2,0.0412924]
[1727313223873,5.94862492,2578.3,2578.2,0.0412924]
[1727313224304,5.94862492,2578.3,2577.2,0.0505097]
[1727313224305,3.87973,2577.5,2577.2,0.0505097]
[1727313224507,3.6631492,2577.4,2577.2,0.0505097]
[1727313224702,4.4345492,2577.8,2577.3,3.88001]
[1727313225709,4.4345492,2577.8,2577.2,0.12810017]
[1727313225710,3.6631492,2577.6,2577.2,4.00818017]
[1727313225914,3.6631492,2577.6,2577.2,0.0505097]
[1727313226207,3.6631492,2577.6,2577.2,0.44358267]
[1727313226511,3.87945,2577.7,2577.2,0.44358267]
[1727313226665,3.87945,2577.7,2577.2,4.32373267]
[1727313226867,0.7714,2577.8,2577.2,4.32373267]
[1727313227111,0.7714,2577.8,2577.3,3.88001]
[1727313227592,4.63636,2578.1,2577.5,3.87963]
[1727313227795,8.51529,2578.1,2577.5,3.87963]
[1727313228792,4.63636,2578.1,2577.5,3.95720572]
[1727313228994,4.63636,2578.1,2577.6,3.87954]
[1727313230785,4.63636,2578.1,2577.7,0.05456881]
[1727313230989,0.7575,2578.1,2577.7,0.05456881]
[1727313231220,4.65748,2578.4,2577.8,0.8081]
[1727313231415,4.65748,2578.4,2577.9,3.95669274]
[1727313231713,4.65748,2578.4,2577.9,4.01106004]
[1727313232088,3.87855,2578.3,2577.9,0.0543773]
[1727313232416,4.65748,2578.4,2577.9,3.95661284]
[1727313232580,4.65748,2578.4,2578.0,0.05465485]
[1727313233416,4.65748,2578.4,2577.8,3.87917]
[1727313233617,4.65748,2578.4,2578.1,0.05465485]
[1727313233905,4.65748,2578.4,2577.8,3.87917]
[1727313234108,4.65748,2578.4,2577.9,3.95667289]
[1727313234414,4.65748,2578.4,2578.0,0.05462613]
[1727313235276,0.7791,2578.4,2578.0,0.05462613]
[1727313235479,3.87882,2578.1,2578.0,0.05462613]
[1727313235679,3.87882,2578.1,2577.6,0.8104]
[1727313235985,3.87882,2578.1,2577.7,0.05464528]
[1727313236208,3.87882,2578.1,2577.7,3.05464528]
[1727313236402,3.87882,2578.1,2577.7,4.12910481]
[1727313236621,3.87868,2578.2,2577.7,1.12910481]
[1727313236812,3.87868,2578.2,2577.7,0.05464528]
[1727313236813,3.87901,2578.0,2577.7,0.05464528]
[1727313237050,0.7743,2577.9,2577.7,0.05464528]
[1727313237213,3.87927,2577.8,2577.7,0.05464528]
[1727313237540,3.8798,2577.5,2577.2,0.0505097]
[1727313237898,3.88002,2577.3,2577.2,0.0505097]
[1727313242223,0.8105,2577.4,2577.2,0.0505097]
[1727313242575,3.0,2578.2,2577.2,0.0505097]
[1727313242576,4.70435,2577.7,2577.2,3.9306797]
[1727313242753,0.8249,2577.7,2577.2,3.9306797]
[1727313243056,4.66538,2578.2,2577.6,3.87948]
[1727313243255,9.18469987,2578.2,2577.5,0.7581]
[1727313243452,9.18469987,2578.2,2577.6,0.07758333]
[1727313243614,9.18469987,2578.2,2577.6,4.42861166]
[1727313243814,4.66538,2578.2,2577.7,3.87941]
[1727313244111,0.7866,2578.2,2577.8,3.87924]
[1727313244427,3.87844,2578.4,2577.9,3.87907]
[1727313244633,3.87844,2578.4,2577.8,4.70226683]
[1727313245016,3.87844,2578.4,2577.9,3.87912]
[1727313245549,5.27621987,2578.5,2577.8,4.70220683]
[1727313245755,3.87809,2578.6,2578.0,3.87883]
[1727313245951,3.87809,2578.6,2578.0,7.75771]
[1727313246119,3.87832,2578.5,2577.8,3.87914]
[1727313246319,3.87832,2578.5,2577.9,0.387914]
[1727313246545,3.87832,2578.5,2577.9,4.266954]
[1727313246746,3.87809,2578.6,2578.0,3.87887]
[1727313246949,3.87823,2578.5,2578.0,3.87887]
[1727313247255,0.8309,2578.7,2578.1,0.8264]
[1727313247553,4.70893,2578.7,2578.1,5.22218522]
[1727313248063,3.87817,2578.6,2578.1,1.34347522]
[1727313248229,3.87817,2578.6,2578.1,0.8264]
[1727313249231,3.87825,2578.5,2578.1,0.8264]
[1727313249432,3.87825,2578.5,2577.9,3.8981414]
[1727313249946,3.87825,2578.5,2578.0,0.05556464]
[1727313250162,9.19913987,2578.1,2578.0,0.05556464]
[1727313250665,7.67997,2578.0,2577.9,0.0190614]
[1727313250840,7.67997,2578.0,2577.1,0.0372746]
[1727313250841,3.88018,2577.2,2577.1,0.0372746]
[1727313251519,3.88018,2577.2,2577.1,0.08483597]
[1727313251725,9.20035987,2577.3,2577.1,0.08483597]
[1727313252358,0.801,2577.3,2577.1,0.08483597]
[1727313253038,3.88006,2577.3,2577.1,0.08483597]
[1727313255763,7.76022,2577.3,2577.1,0.08483597]
[1727313256066,3.88006,2577.3,2577.1,0.08483597]
[1727313256933,7.75963,2577.5,2577.1,0.08483597]
[1727313257129,3.87993,2577.4,2577.1,0.08483597]
[1727313258269,3.8798,2577.5,2577.1,0.08483597]
[1727313258567,3.67246996,2577.4,2577.1,0.08483597]
[1727313262457,3.8798,2577.5,2577.1,0.08483597]
[1727313262674,7.75962,2577.5,2577.1,0.08483597]
[1727313262974,3.67246996,2577.4,2577.1,0.08483597]
[1727313265585,7.55212996,2577.6,2577.1,0.16243772]
[1727313265739,3.67246996,2577.6,2577.1,0.16243772]
[1727313266082,7.55206996,2577.6,2577.1,3.96514597]
[1727313266374,7.55206996,2577.6,2577.1,4.04274306]
[1727313266939,7.55206996,2577.6,2577.1,0.16243306]
[1727313267245,7.55206996,2577.6,2577.1,0.08483597]
[1727313267880,7.55242996,2577.4,2577.1,0.08483597]
[1727313269071,3.67246996,2577.4,2577.1,0.08483597]
[1727313269269,7.55235996,2577.4,2577.1,0.08483597]
[1727313269761,3.88004,2577.3,2577.1,0.08483597]
[1727313269973,3.67246996,2577.2,2577.1,0.08483597]
[1727313270346,3.87981,2577.5,2577.1,0.08483597]
[1727313270347,3.67246996,2577.4,2577.1,0.08483597]
[1727313271484,7.55242996,2577.4,2577.1,0.08483597]
[1727313273181,3.67246996,2577.4,2577.1,0.08483597]
[1727313273487,3.67246996,2577.6,2577.1,4.52475388]
[1727313273714,7.55206996,2577.6,2577.1,4.04267411]
[1727313273993,3.67246996,2577.6,2577.1,4.04273414]
[1727313274495,7.55205996,2577.6,2577.1,4.04273414]
[1727313274785,3.67246996,2577.6,2577.2,3.88017]
[1727313275090,7.55212996,2577.6,2577.1,0.16243414]
[1727313275259,7.55212996,2577.6,2577.3,0.04872888]
[1727313275470,7.55212996,2577.6,2577.1,3.99515277]
[1727313275654,7.55212996,2577.6,2577.4,0.04872888]
[1727313275899,7.55212996,2577.6,2577.1,3.99515277]
[1727313276094,7.55212996,2577.6,2577.5,0.04872888]
[1727313276283,7.55212996,2577.6,2577.1,3.99515277]
[1727313276490,1.277207,2578.5,2577.5,0.83782888]
[1727313276694,3.8783,2578.5,2578.0,4.66794]
[1727313276875,3.67246996,2578.7,2578.0,0.7891]
[1727313277074,3.87868,2578.2,2578.1,0.04863317]
[1727313277617,3.87867,2578.2,2578.1,0.04830776]
[1727313277958,3.87867,2578.2,2577.3,3.0]
[1727313278170,3.87867,2578.2,2577.2,8.2217]
[1727313278171,7.55176996,2577.8,2577.4,0.04830776]
[1727313278372,3.8796,2577.6,2577.2,3.7817]
[1727313278569,3.8796,2577.6,2577.5,0.04830776]
[1727313278797,7.55176996,2577.8,2577.2,3.7817]
[1727313279002,3.87942,2577.7,2577.5,0.04830776]
[1727313279175,11.43116996,2577.8,2577.2,7.66187]
[1727313279510,3.87957,2577.7,2577.6,0.04830776]
[1727313279663,3.87965,2577.6,2577.2,3.7817]
[1727313279890,3.87965,2577.6,2577.2,0.7817]
[1727313279891,3.87973,2577.5,2577.2,0.7817]
[1727313280071,7.55242996,2577.4,2577.3,0.04830776]
[1727313280385,3.87974,2577.5,2577.1,0.0372746]
[1727313280588,3.87974,2577.5,2577.3,0.04830776]
[1727313280895,3.87974,2577.5,2577.1,0.0372746]
[1727313281101,3.87974,2577.5,2577.4,0.04830776]
[1727313281309,5.022913,2577.5,2577.1,0.0372746]
[1727313281507,3.87974,2577.5,2577.4,0.04830776]
[1727313281808,3.87993,2577.4,2577.1,0.0372746]
[1727313282303,7.55239996,2577.4,2577.1,0.0372746]
[1727313282603,3.87955,2577.7,2577.1,0.0372746]
[1727313282816,3.87955,2577.7,2577.1,3.9175946]
[1727313283503,3.87961,2577.6,2577.1,3.9175946]
[1727313283700,3.87955,2577.7,2577.1,3.9175046]
[1727313284081,3.87955,2577.7,2577.2,3.88017]
[1727313285480,4.45906996,2577.8,2577.2,4.65987246]
[1727313285677,3.67246996,2577.8,2577.4,3.87984]
[1727313287403,3.67246996,2577.8,2577.2,3.88008]
[1727313287585,3.87945,2577.7,2577.2,3.88008]
[1727313287791,3.67246996,2577.8,2577.2,3.88008]
[1727313287985,7.55176996,2577.8,2577.3,3.88]
[1727313288426,3.87988,2577.4,2577.1,0.0372746]
[1727313288728,7.55232996,2577.5,2577.1,0.0372746]
[1727313289414,7.55228996,2577.5,2577.1,0.0372746]
[1727313289821,11.43214996,2577.5,2577.1,0.0372746]
[1727313290116,7.55228996,2577.5,2577.1,0.0372746]
[1727313290323,0.795,2577.4,2577.1,0.0372746]
[1727313290830,3.88003,2577.3,2577.1,0.0372746]
[1727313291315,0.795,2577.4,2577.1,0.0372746]
[1727313291744,11.43214996,2577.5,2577.1,0.0372746]
[1727313291745,7.55228996,2577.5,2577.1,0.0372746]
[1727313291925,0.795,2577.6,2577.1,0.0372746]
[1727313291926,3.87958,2577.6,2577.1,0.0372746]
[1727313292787,3.87958,2577.6,2577.1,3.9175746]
[1727313293994,3.87958,2577.6,2577.1,0.0372746]
[1727313294531,11.43150996,2577.7,2577.1,3.9175046]
[1727313294886,3.8796,2577.6,2577.1,3.9175046]
[1727313295119,3.8796,2577.6,2577.2,0.04862359]
[1727313295524,7.55198996,2577.7,2577.2,0.04862359]
[1727313295890,11.43149996,2577.7,2577.2,0.04862359]
[1727313296110,3.87928,2577.8,2577.2,0.04862359]
[1727313296311,3.87928,2577.8,2577.4,0.7595]
[1727313296626,3.87944,2577.7,2577.5,0.04850872]
[1727313296790,7.75895,2577.7,2577.5,0.04850872]
[1727313296986,3.87944,2577.7,2577.5,0.04850872]
[1727313297230,7.75896,2577.7,2577.5,0.04850872]
[1727313299734,7.55203996,2577.6,2577.5,0.04850872]
[1727313300113,3.87977,2577.5,2577.1,0.0372746]
[1727313300313,3.67246996,2577.4,2577.1,0.0372746]
[1727313300514,3.88004,2577.3,2577.1,0.0372746]
[1727313300834,3.88018,2577.2,2577.1,0.0372746]
[1727313301445,7.55264996,2577.2,2577.1,0.0372746]
[1727313301939,8.69591896,2577.2,2577.1,0.0372746]
[1727313302097,7.55264996,2577.2,2577.1,0.0372746]
[1727313303301,8.36544996,2577.2,2577.1,0.0372746]
[1727313304747,7.76015,2577.3,2577.1,0.0372746]
[1727313304912,3.88004,2577.3,2577.1,0.0372746]
[1727313305112,7.55264996,2577.2,2577.1,0.0372746]
[1727313305512,3.67246996,2577.2,2577.1,0.0372746]
[1727313305960,7.55264996,2577.2,2577.1,0.0372746]
[1727313306834,8.69591896,2577.2,2577.1,0.0372746]
[1727313307010,9.49371896,2577.2,2577.1,0.0372746]
[1727313312367,3.88018,2577.2,2577.1,0.0372746]
[1727313312670,3.88018,2577.2,2577.1,0.08794585]
[1727313312834,3.88018,2577.2,2577.1,0.0372746]
[1727313313036,3.88018,2577.2,2577.1,0.08794585]
[1727313313255,3.88018,2577.2,2577.1,0.0372746]
[1727313313457,3.87974,2577.5,2577.1,0.08794585]
[1727313313732,3.87974,2577.5,2577.1,0.51177819]
[1727313314042,3.87974,2577.5,2577.2,0.05049883]
[1727313316569,3.88002,2577.3,2577.2,0.05049883]
[1727313320077,3.88018,2577.2,2577.1,0.0372746]
[1727313320443,3.88018,2577.2,2577.1,0.08752441]
[1727313320650,3.88018,2577.2,2577.1,0.0372746]
[1727313321578,3.87948,2577.7,2577.2,0.7936]
[1727313321753,3.87948,2577.7,2577.2,1.26975944]
[1727313321947,3.87948,2577.7,2577.3,0.04979004]
[1727313322774,7.75905,2577.7,2577.3,0.04979004]
[1727313323551,3.87987,2577.4,2577.3,0.04979004]
[1727313324139,8.33653996,2577.5,2577.1,0.0372746]
[1727313324140,3.88018,2577.2,2577.1,0.0372746]
[1727313324367,7.55264996,2577.2,2577.1,0.08678695]
[1727313324887,7.55264996,2577.2,2577.1,0.0372746]
[1727313325739,8.33684996,2577.2,2577.1,0.0372746]
[1727313325941,9.64190436,2577.2,2577.1,0.0372746]
[1727313329892,12.64190436,2577.2,2577.1,0.0372746]
[1727313330193,12.64190436,2577.2,2576.4,0.0372746]
[1727313330194,8.36719996,2576.5,2576.4,0.0372746]
[1727313330342,4.69473,2576.5,2576.4,0.0372746]
[1727313330688,7.69473,2576.5,2576.4,0.0372746]
[1727313331160,9.58680599,2576.5,2576.4,0.0372746]
[1727313335860,10.13680599,2576.5,2576.4,0.0372746]
[1727313339502,0.8034,2576.3,2575.6,0.0372746]
[1727313339821,7.55489996,2575.7,2575.6,0.0372746]
[1727313340323,7.55429996,2576.1,2575.6,0.0372746]
[1727313340475,3.88208,2576.0,2575.7,0.8228]
[1727313340677,3.88228,2575.8,2575.7,0.86882284]
[1727313340881,3.88228,2575.8,2575.7,0.04602284]
[1727313341189,5.829376,2575.8,2575.7,0.04602284]
[1727313341391,5.829376,2575.8,2575.6,0.0372746]
[1727313341582,7.55489996,2575.7,2575.6,0.0372746]
[1727313342094,7.55489996,2575.7,2575.6,0.0833741]
[1727313342295,7.55489996,2575.7,2575.6,0.0372746]
[1727313342540,7.55489996,2575.7,2575.6,0.0833741]
[1727313342821,3.88243,2575.7,2575.6,0.08338368]
[1727313343412,3.88228,2575.8,2575.6,0.08338368]
[1727313343616,3.88228,2575.8,2575.7,0.8116]
[1727313344333,3.88228,2575.8,2575.7,0.85770908]
[1727313344623,3.88207,2576.0,2575.7,0.85770908]
[1727313344793,0.785,2576.3,2575.8,3.88228]
[1727313344794,3.88162,2576.3,2575.8,3.88228]
[1727313344999,7.76294,2576.4,2575.8,3.88226]
[1727313345223,7.76291,2576.4,2575.9,0.7939]
[1727313345416,3.88155,2576.3,2576.0,0.467616]
[1727313345616,3.88155,2576.3,2576.1,0.04585039]
[1727313346008,3.88144,2576.4,2576.1,0.04585039]
[1727313346231,3.67246996,2576.5,2576.2,0.7939]
[1727313346432,4.65139,2577.1,2576.3,4.67532]
[1727313346433,3.88056,2577.0,2576.3,4.67532]
[1727313346635,3.88073,2576.9,2576.5,0.8151]
[1727313346845,3.88056,2577.0,2576.5,0.8151]
[1727313347046,3.88082,2576.8,2576.5,0.8151]
[1727313347256,3.88082,2576.8,2576.6,0.04555344]
[1727313347552,7.76169,2576.8,2576.6,0.04555344]
[1727313348057,3.88082,2576.8,2576.6,0.04555344]
[1727313348555,7.76169,2576.8,2576.6,0.04555344]
[1727313348885,3.88082,2576.8,2576.6,0.04555344]
[1727313349552,7.55339996,2576.7,2576.6,0.04555344]
[1727313349722,3.67246996,2576.7,2576.6,0.04555344]
[1727313352572,7.92064696,2576.7,2576.6,0.04555344]
[1727313353002,7.92064696,2576.7,2576.2,0.8311]
[1727313353301,3.88093,2576.7,2576.2,0.8311]
[1727313353467,3.88123,2576.5,2576.3,0.04377223]
[1727313353667,3.67246996,2576.4,2576.0,0.8311]
[1727313353851,3.67246996,2576.2,2576.0,0.8311]
[1727313354888,7.55388996,2576.4,2576.1,0.04377223]
[1727313355098,3.67246996,2576.2,2576.1,0.04377223]
[1727313355460,3.67246996,2576.2,2575.8,0.831]
[1727313355794,3.67246996,2576.2,2576.1,0.04377223]
[1727313356288,3.67246996,2576.2,2575.8,0.831]
[1727313356487,3.67246996,2576.2,2576.1,0.04377223]
[1727313356679,8.150813,2576.5,2575.8,0.831]
[1727313356680,3.67246996,2576.4,2575.8,0.831]
[1727313356855,3.67246996,2576.4,2576.1,0.04377223]
[1727313357055,3.67246996,2576.4,2575.8,1.30606146]
[1727313357252,7.55386996,2576.4,2576.2,0.04377223]
[1727313357457,3.88153,2576.3,2575.8,0.831]
[1727313357677,4.81600896,2576.2,2575.8,0.831]
[1727313357892,3.67246996,2576.0,2575.6,0.0372746]
[1727313358256,8.35268996,2576.2,2575.6,0.0372746]
[1727313358502,7.55449996,2576.0,2575.6,0.0372746]
[1727313358799,3.67246996,2576.0,2575.6,0.0372746]
[1727313359094,0.7985,2576.2,2575.6,0.0372746]
[1727313359095,8.35267996,2576.2,2575.6,0.0372746]
[1727313359500,3.67246996,2576.2,2575.6,0.0372746]
[1727313360564,7.55415996,2576.2,2575.6,0.0372746]
[1727313361297,3.67246996,2576.2,2575.6,0.0372746]
[1727313361604,3.88111,2576.6,2576.0,0.8015]
[1727313361810,3.67246996,2576.5,2576.0,0.8015]
[1727313362105,7.55369996,2576.5,2576.0,0.8015]
[1727313362395,3.67246996,2576.1,2575.7,0.8015]
[1727313362696,7.55433996,2576.1,2575.7,0.8015]
[1727313363205,3.67246996,2576.1,2575.7,0.8015]
[1727313363960,3.88207,2576.0,2575.6,0.0372746]
[1727313364296,4.52804496,2576.1,2575.6,0.0372746]
[1727313364605,3.67246996,2576.1,2575.6,0.0372746]
[1727313365202,3.88173,2576.2,2575.6,0.0372746]
[1727313365372,0.7925,2576.3,2575.6,0.0372746]
[1727313365591,3.88146,2576.4,2575.7,4.66325]
[1727313365788,3.88146,2576.4,2575.7,5.52154746]
[1727313366159,3.67246996,2576.1,2575.7,0.7809]
[1727313367501,3.88177,2576.2,2575.7,0.7809]